[Event "Titled Tuesday Blitz August 15 Early 2023"]
[White "Santos Flores, Alberto"]
[Black "Luong Phuong Hanh"]
[WhiteFideId "3601234"]
[BlackFideId "12401013"]
[WhiteElo "2549"]
[BlackElo "2413"]
[Result "0-1"]
[Round "4"]
[TimeControl "180+1"]
[Date "2023.08.15"]
[WhiteClock "0:00:00"]
[BlackClock "0:00:01"]
[Board "123"]

1. e4 {[%clk 0:02:59]}  c5 {[%clk 0:02:58]} 2. Nf3 {[%clk 0:02:59]}  e6 {[%clk 0:02:58]} 3. g3 {[%clk 0:02:59]}  d5 {[%clk 0:02:57]} 4. exd5 {[%clk 0:02:59]}  exd5 {[%clk 0:02:48]} 5. d4 {[%clk 0:02:59]}  Nf6 {[%clk 0:02:47]} 6. Bg2 {[%clk 0:02:59]}  h6 {[%clk 0:02:48]} 7. O-O {[%clk 0:02:59]}  Be7 {[%clk 0:02:48]} 8. dxc5 {[%clk 0:02:59]}  O-O {[%clk 0:02:48]} 9. b4 {[%clk 0:02:56]}  a5 {[%clk 0:02:46]} 10. c3 {[%clk 0:02:54]}  Ne4 {[%clk 0:02:31]} 11. Bb2 {[%clk 0:02:47]}  Bf6 {[%clk 0:02:22]} 12. a3 {[%clk 0:02:19]}  axb4 {[%clk 0:01:58]} 13. axb4 {[%clk 0:02:18]}  Rxa1 {[%clk 0:01:58]} 14. Bxa1 {[%clk 0:02:19]}  Nc6 {[%clk 0:01:54]} 15. Qb3 {[%clk 0:02:17]}  b6 {[%clk 0:01:37]} 16. cxb6 {[%clk 0:02:10]}  Qxb6 {[%clk 0:01:18]} 17. Qxd5 {[%clk 0:02:05]}  Re8 {[%clk 0:01:05]} 18. Nfd2 {[%clk 0:01:38]}  Nxd2 {[%clk 0:00:51]} 19. Nxd2 {[%clk 0:01:37]}  Bb7 {[%clk 0:00:51]} 20. Ne4 {[%clk 0:01:25]}  Be5 {[%clk 0:00:49]} 21. Nd6 {[%clk 0:01:20]}  Bxd6 {[%clk 0:00:42]} 22. Qxd6 {[%clk 0:01:20]}  Re6 {[%clk 0:00:41]} 23. Qd2 {[%clk 0:01:13]}  Ba6 {[%clk 0:00:39]} 24. Re1 {[%clk 0:01:12]}  Ne5 {[%clk 0:00:37]} 25. h3 {[%clk 0:00:33]}  Bb7 {[%clk 0:00:30]} 26. c4 {[%clk 0:00:17]}  Nxc4 {[%clk 0:00:29]} 27. Qd1 {[%clk 0:00:12]}  Bxg2 {[%clk 0:00:12]} 28. Kxg2 {[%clk 0:00:11]}  Rxe1 {[%clk 0:00:09]} 29. Qxe1 {[%clk 0:00:11]}  Qc6+ {[%clk 0:00:09]} 30. Kg1 {[%clk 0:00:10]}  Nd6 {[%clk 0:00:06]} 31. Qe5 {[%clk 0:00:08]}  f6 {[%clk 0:00:06]} 32. Qe6+ {[%clk 0:00:07]}  Kh8 {[%clk 0:00:07]} 33. Qe1 {[%clk 0:00:07]}  Qb5 {[%clk 0:00:06]} 34. Qc3 {[%clk 0:00:05]}  Nf5 {[%clk 0:00:06]} 35. Kh2 {[%clk 0:00:03]}  Kh7 {[%clk 0:00:06]} 36. Qc2 {[%clk 0:00:03]}  Kh8 {[%clk 0:00:05]} 37. Bc3 {[%clk 0:00:04]}  Qd5 {[%clk 0:00:04]} 38. Qd2 {[%clk 0:00:03]}  Qb5 {[%clk 0:00:03]} 39. Qf4 {[%clk 0:00:02]}  Kg8 {[%clk 0:00:03]} 40. Qe4 {[%clk 0:00:02]}  Kh8 {[%clk 0:00:03]} 41. h4 {[%clk 0:00:02]}  Nd6 {[%clk 0:00:03]} 42. Qf4 {[%clk 0:00:02]}  Nc4 {[%clk 0:00:02]} 43. Qd4 {[%clk 0:00:01]}  Kh7 {[%clk 0:00:02]} 44. Qd3+ {[%clk 0:00:01]}  Kh8 {[%clk 0:00:02]} 45. Qe4 {[%clk 0:00:01]}  Nd6 {[%clk 0:00:02]} 46. Qd4 {[%clk 0:00:01]}  Nf5 {[%clk 0:00:02]} 47. Qc5 {[%clk 0:00:00]}  Qd3 {[%clk 0:00:01]} 0-1


[Site "https://www.chess.com"]

[Event "Titled Tuesday Blitz August 15 Early 2023"]
[White "Manukyan, Sargis V."]
[Black "ExchangeAB"]
[WhiteFideId "13303465"]
[WhiteElo "2544"]
[BlackElo "2412"]
[Result "0-1"]
[Round "4"]
[TimeControl "180+1"]
[Date "2023.08.15"]
[WhiteClock "0:00:27"]
[BlackClock "0:00:40"]
[Board "124"]

1. d4 {[%clk 0:03:00]}  Nf6 {[%clk 0:02:59]} 2. c4 {[%clk 0:02:59]}  c6 {[%clk 0:03:00]} 3. Nc3 {[%clk 0:02:59]}  d5 {[%clk 0:02:59]} 4. Nf3 {[%clk 0:02:58]}  e6 {[%clk 0:02:58]} 5. Bg5 {[%clk 0:02:57]}  Nbd7 {[%clk 0:02:57]} 6. e3 {[%clk 0:02:57]}  Qa5 {[%clk 0:02:57]} 7. Nd2 {[%clk 0:02:57]}  dxc4 {[%clk 0:02:56]} 8. Bxf6 {[%clk 0:02:56]}  Nxf6 {[%clk 0:02:57]} 9. Nxc4 {[%clk 0:02:56]}  Qc7 {[%clk 0:02:58]} 10. Bd3 {[%clk 0:02:56]}  Be7 {[%clk 0:02:55]} 11. O-O {[%clk 0:02:55]}  O-O {[%clk 0:02:55]} 12. Rc1 {[%clk 0:02:56]}  Rd8 {[%clk 0:02:54]} 13. Qf3 {[%clk 0:02:56]}  Bd7 {[%clk 0:02:18]} 14. Ne5 {[%clk 0:02:32]}  Be8 {[%clk 0:02:18]} 15. Rfd1 {[%clk 0:02:15]}  Nd7 {[%clk 0:02:16]} 16. Ng4 {[%clk 0:01:41]}  Nf6 {[%clk 0:02:14]} 17. Ne5 {[%clk 0:01:30]}  Nd7 {[%clk 0:02:14]} 18. Ng4 {[%clk 0:01:30]}  Rac8 {[%clk 0:01:50]} 19. Qh3 {[%clk 0:01:23]}  h6 {[%clk 0:01:40]} 20. Ne4 {[%clk 0:01:21]}  f5 {[%clk 0:01:31]} 21. Nxh6+ {[%clk 0:01:15]}  gxh6 {[%clk 0:01:23]} 22. Qxh6 {[%clk 0:01:10]}  fxe4 {[%clk 0:01:14]} 23. Qxe6+ {[%clk 0:01:09]}  Bf7 {[%clk 0:01:11]} 24. Qxe4 {[%clk 0:01:08]}  Nf6 {[%clk 0:01:08]} 25. Qh4 {[%clk 0:01:07]}  Rd5 {[%clk 0:00:55]} 26. f4 {[%clk 0:00:59]}  Rh5 {[%clk 0:00:54]} 27. Qg3+ {[%clk 0:00:51]}  Kf8 {[%clk 0:00:54]} 28. Qf3 {[%clk 0:00:49]}  Rh8 {[%clk 0:00:52]} 29. g4 {[%clk 0:00:43]}  Nxg4 {[%clk 0:00:47]} 30. h3 {[%clk 0:00:34]}  Nf6 {[%clk 0:00:45]} 31. Kh2 {[%clk 0:00:35]}  Bh5 {[%clk 0:00:44]} 32. Qf2 {[%clk 0:00:32]}  Bxd1 {[%clk 0:00:44]} 33. Rxd1 {[%clk 0:00:27]}  Ng4+ {[%clk 0:00:40]} 0-1


[Site "https://www.chess.com"]

[Event "Titled Tuesday Blitz August 15 Early 2023"]
[White "Grossboss19"]
[Black "Melikhov, Evgeny V."]
[BlackFideId "4122046"]
[WhiteElo "2540"]
[BlackElo "2394"]
[Result "1-0"]
[Round "4"]
[TimeControl "180+1"]
[Date "2023.08.15"]
[WhiteClock "0:01:15"]
[BlackClock "0:00:07"]
[Board "125"]

1. Nf3 {[%clk 0:02:58]}  f5 {[%clk 0:01:19]} 2. c4 {[%clk 0:02:55]}  Nf6 {[%clk 0:01:18]} 3. d4 {[%clk 0:02:54]}  g6 {[%clk 0:01:18]} 4. g3 {[%clk 0:02:52]}  Bg7 {[%clk 0:01:17]} 5. Bg2 {[%clk 0:02:53]}  d6 {[%clk 0:01:17]} 6. O-O {[%clk 0:02:51]}  O-O {[%clk 0:01:16]} 7. Nc3 {[%clk 0:02:48]}  Qe8 {[%clk 0:01:08]} 8. Re1 {[%clk 0:02:48]}  e5 {[%clk 0:00:59]} 9. dxe5 {[%clk 0:02:47]}  dxe5 {[%clk 0:00:59]} 10. e4 {[%clk 0:02:46]}  f4 {[%clk 0:00:58]} 11. gxf4 {[%clk 0:02:37]}  exf4 {[%clk 0:00:58]} 12. e5 {[%clk 0:02:37]}  Nh5 {[%clk 0:00:56]} 13. Nb5 {[%clk 0:02:21]}  Na6 {[%clk 0:00:52]} 14. b3 {[%clk 0:02:08]}  Bf5 {[%clk 0:00:42]} 15. Qd5+ {[%clk 0:01:39]}  Kh8 {[%clk 0:00:41]} 16. Qxb7 {[%clk 0:01:30]}  Nc5 {[%clk 0:00:41]} 17. Qxc7 {[%clk 0:01:29]}  Nd3 {[%clk 0:00:38]} 18. Re2 {[%clk 0:01:18]}  Nxc1 {[%clk 0:00:36]} 19. Rxc1 {[%clk 0:01:17]}  Qe6 {[%clk 0:00:07]} 20. Nbd4 {[%clk 0:01:15]} 1-0


[Site "https://www.chess.com"]

[Event "Titled Tuesday Blitz August 15 Early 2023"]
[White "Smietanska, Wiktoria"]
[Black "Nakamura, Hikaru"]
[WhiteFideId "21869359"]
[BlackFideId "2016192"]
[WhiteElo "2279"]
[BlackElo "3239"]
[Result "0-1"]
[Round "4"]
[TimeControl "180+1"]
[Date "2023.08.15"]
[WhiteClock "0:01:21"]
[BlackClock "0:02:08"]
[Board "127"]

1. c4 {[%clk 0:02:54]}  g6 {[%clk 0:03:00]} 2. Nc3 {[%clk 0:02:53]}  Bg7 {[%clk 0:03:01]} 3. g3 {[%clk 0:02:53]}  d6 {[%clk 0:02:59]} 4. Bg2 {[%clk 0:02:54]}  Nc6 {[%clk 0:03:00]} 5. e4 {[%clk 0:02:53]}  e5 {[%clk 0:03:00]} 6. Nge2 {[%clk 0:02:54]}  h5 {[%clk 0:03:00]} 7. h4 {[%clk 0:02:51]}  f5 {[%clk 0:02:59]} 8. d3 {[%clk 0:02:50]}  Nf6 {[%clk 0:02:59]} 9. O-O {[%clk 0:02:50]}  Be6 {[%clk 0:02:57]} 10. exf5 {[%clk 0:02:44]}  Bxf5 {[%clk 0:02:52]} 11. f4 {[%clk 0:02:41]}  Qd7 {[%clk 0:02:51]} 12. Nd5 {[%clk 0:02:31]}  O-O {[%clk 0:02:38]} 13. Nec3 {[%clk 0:02:24]}  Ng4 {[%clk 0:02:34]} 14. fxe5 {[%clk 0:02:15]}  Ncxe5 {[%clk 0:02:28]} 15. Ne4 {[%clk 0:02:07]}  c6 {[%clk 0:02:27]} 16. Ne3 {[%clk 0:02:05]}  Nxe3 {[%clk 0:02:26]} 17. Bxe3 {[%clk 0:02:05]}  Ng4 {[%clk 0:02:22]} 18. Bf4 {[%clk 0:01:56]}  d5 {[%clk 0:02:19]} 19. cxd5 {[%clk 0:01:54]}  cxd5 {[%clk 0:02:20]} 20. Nc3 {[%clk 0:01:48]}  Bd4+ {[%clk 0:02:18]} 21. Kh1 {[%clk 0:01:45]}  Nf2+ {[%clk 0:02:19]} 22. Rxf2 {[%clk 0:01:45]}  Bxf2 {[%clk 0:02:19]} 23. Bxd5+ {[%clk 0:01:44]}  Kh7 {[%clk 0:02:19]} 24. Qf3 {[%clk 0:01:35]}  Be4 {[%clk 0:02:09]} 25. Nxe4 {[%clk 0:01:21]}  Qh3# {[%clk 0:02:08]} 0-1


[Site "https://www.chess.com"]

[Event "Titled Tuesday Blitz August 15 Early 2023"]
[White "KorolDimitriy75"]
[Black "Vaishali, Rameshbabu"]
[BlackFideId "5091756"]
[WhiteElo "2405"]
[BlackElo "2654"]
[Result "1-0"]
[Round "4"]
[TimeControl "180+1"]
[Date "2023.08.15"]
[WhiteClock "0:03:03"]
[BlackClock "0:02:26"]
[Board "131"]

1. d4 {[%clk 0:03:00]}  Nf6 {[%clk 0:02:58]} 2. c4 {[%clk 0:03:01]}  g6 {[%clk 0:02:58]} 3. Nc3 {[%clk 0:03:01]}  d5 {[%clk 0:02:58]} 4. cxd5 {[%clk 0:03:01]}  Nxd5 {[%clk 0:02:59]} 5. e4 {[%clk 0:03:02]}  Nxc3 {[%clk 0:02:59]} 6. bxc3 {[%clk 0:03:03]}  Bg7 {[%clk 0:03:00]} 7. Nf3 {[%clk 0:03:03]}  c5 {[%clk 0:03:00]} 8. Rb1 {[%clk 0:03:03]}  O-O {[%clk 0:02:59]} 9. Be2 {[%clk 0:03:03]}  cxd4 {[%clk 0:03:00]} 10. cxd4 {[%clk 0:03:04]}  Qa5+ {[%clk 0:03:00]} 11. Qd2 {[%clk 0:03:04]}  Qxa2 {[%clk 0:02:26]} 12. Qxa2 {[%clk 0:03:03]} 1-0


[Site "https://www.chess.com"]

[Event "Titled Tuesday Blitz August 15 Early 2023"]
[White "Lorenzo De La Riva, Lazaro"]
[Black "Andreev, Konstantin"]
[WhiteFideId "2268809"]
[BlackFideId "24239305"]
[WhiteElo "2404"]
[BlackElo "2626"]
[Result "1-0"]
[Round "4"]
[TimeControl "180+1"]
[Date "2023.08.15"]
[WhiteClock "0:00:20"]
[BlackClock "0:02:04"]
[Board "132"]

1. c4 {[%clk 0:03:00]}  e5 {[%clk 0:02:59]} 2. Nf3 {[%clk 0:03:00]}  Nf6 {[%clk 0:03:00]} 3. Nxe5 {[%clk 0:03:00]}  d6 {[%clk 0:03:01]} 4. Nf3 {[%clk 0:02:59]}  Be7 {[%clk 0:03:02]} 5. g3 {[%clk 0:02:59]}  O-O {[%clk 0:03:02]} 6. Bg2 {[%clk 0:03:00]}  c6 {[%clk 0:03:03]} 7. O-O {[%clk 0:02:59]}  h6 {[%clk 0:03:04]} 8. Nc3 {[%clk 0:02:58]}  Re8 {[%clk 0:03:05]} 9. d4 {[%clk 0:02:58]}  Bf8 {[%clk 0:03:06]} 10. Qc2 {[%clk 0:02:54]}  Qc7 {[%clk 0:03:06]} 11. e4 {[%clk 0:02:53]}  b6 {[%clk 0:03:06]} 12. Re1 {[%clk 0:02:52]}  Bb7 {[%clk 0:03:07]} 13. h3 {[%clk 0:02:51]}  Nbd7 {[%clk 0:03:07]} 14. b3 {[%clk 0:02:49]}  a5 {[%clk 0:03:07]} 15. Bb2 {[%clk 0:02:48]}  g6 {[%clk 0:03:05]} 16. Rad1 {[%clk 0:02:42]}  Bg7 {[%clk 0:03:05]} 17. Re2 {[%clk 0:02:17]}  Re7 {[%clk 0:03:04]} 18. Rde1 {[%clk 0:02:17]}  Rae8 {[%clk 0:03:05]} 19. Nd1 {[%clk 0:02:11]}  Ba6 {[%clk 0:03:04]} 20. e5 {[%clk 0:02:04]}  dxe5 {[%clk 0:03:04]} 21. Nxe5 {[%clk 0:02:02]}  Nxe5 {[%clk 0:03:04]} 22. dxe5 {[%clk 0:02:03]}  Nd7 {[%clk 0:03:05]} 23. f4 {[%clk 0:02:02]}  Nc5 {[%clk 0:02:57]} 24. Nf2 {[%clk 0:02:01]}  a4 {[%clk 0:02:53]} 25. b4 {[%clk 0:01:56]}  Ne6 {[%clk 0:02:53]} 26. Ne4 {[%clk 0:01:55]}  c5 {[%clk 0:02:53]} 27. b5 {[%clk 0:01:54]}  Bc8 {[%clk 0:02:46]} 28. Nd6 {[%clk 0:01:50]}  Rd8 {[%clk 0:02:46]} 29. f5 {[%clk 0:01:37]}  Nd4 {[%clk 0:02:22]} 30. Bxd4 {[%clk 0:01:32]}  cxd4 {[%clk 0:02:22]} 31. Nxc8 {[%clk 0:01:26]}  d3 {[%clk 0:02:18]} 32. Nxe7+ {[%clk 0:01:25]}  Qxe7 {[%clk 0:02:18]} 33. Qc3 {[%clk 0:01:05]}  dxe2 {[%clk 0:02:17]} 34. Rxe2 {[%clk 0:00:51]}  gxf5 {[%clk 0:02:17]} 35. Kh2 {[%clk 0:00:43]}  Re8 {[%clk 0:02:16]} 36. Qf3 {[%clk 0:00:31]}  Bxe5 {[%clk 0:02:15]} 37. Rf2 {[%clk 0:00:30]}  f4 {[%clk 0:02:13]} 38. g4 {[%clk 0:00:26]}  Bd4 {[%clk 0:02:12]} 39. Rd2 {[%clk 0:00:25]}  Qc5 {[%clk 0:02:11]} 40. Qd3 {[%clk 0:00:22]}  Rd8 {[%clk 0:02:10]} 41. Bd5 {[%clk 0:00:21]}  Bg1+ {[%clk 0:02:01]} 42. Kg2 {[%clk 0:00:20]}  Re8 {[%clk 0:02:02]} 43. Qg6+ {[%clk 0:00:19]}  Kh8 {[%clk 0:02:01]} 44. Qxh6+ {[%clk 0:00:20]}  Kg8 {[%clk 0:02:01]} 45. Qg6+ {[%clk 0:00:20]}  Kh8 {[%clk 0:02:02]} 46. Qh5+ {[%clk 0:00:17]}  Kg7 {[%clk 0:01:56]} 47. Qxf7+ {[%clk 0:00:18]}  Kh6 {[%clk 0:01:54]} 48. Qxe8 {[%clk 0:00:14]}  Bd4 {[%clk 0:01:53]} 49. Qe6+ {[%clk 0:00:13]}  Kg5 {[%clk 0:01:54]} 50. Qf5+ {[%clk 0:00:13]}  Kh6 {[%clk 0:01:54]} 51. Bf7 {[%clk 0:00:11]}  Kg7 {[%clk 0:01:52]} 52. Qxc5 {[%clk 0:00:11]}  bxc5 {[%clk 0:01:51]} 53. Bd5 {[%clk 0:00:12]}  Bc3 {[%clk 0:01:51]} 54. Re2 {[%clk 0:00:12]}  Kf6 {[%clk 0:01:51]} 55. Kf3 {[%clk 0:00:13]}  Be5 {[%clk 0:01:51]} 56. Rxe5 {[%clk 0:00:13]}  Kxe5 {[%clk 0:01:52]} 57. g5 {[%clk 0:00:13]}  a3 {[%clk 0:01:53]} 58. g6 {[%clk 0:00:13]}  Kf6 {[%clk 0:01:54]} 59. g7 {[%clk 0:00:13]}  Kxg7 {[%clk 0:01:54]} 60. Kxf4 {[%clk 0:00:14]}  Kf6 {[%clk 0:01:55]} 61. Ke4 {[%clk 0:00:14]}  Kg6 {[%clk 0:01:56]} 62. b6 {[%clk 0:00:14]}  Kh5 {[%clk 0:01:57]} 63. b7 {[%clk 0:00:15]}  Kg5 {[%clk 0:01:57]} 64. b8=Q {[%clk 0:00:16]}  Kh4 {[%clk 0:01:58]} 65. Qb3 {[%clk 0:00:16]}  Kg5 {[%clk 0:01:58]} 66. Qxa3 {[%clk 0:00:17]}  Kh4 {[%clk 0:01:59]} 67. Qb3 {[%clk 0:00:18]}  Kg5 {[%clk 0:02:00]} 68. a4 {[%clk 0:00:19]}  Kf6 {[%clk 0:02:01]} 69. a5 {[%clk 0:00:20]}  Ke7 {[%clk 0:02:01]} 70. a6 {[%clk 0:00:21]}  Kd6 {[%clk 0:02:02]} 71. a7 {[%clk 0:00:21]}  Kc7 {[%clk 0:02:03]} 72. Qb7+ {[%clk 0:00:20]}  Kd6 {[%clk 0:02:03]} 73. Qc6+ {[%clk 0:00:20]}  Ke7 {[%clk 0:02:04]} 74. Qe6+ {[%clk 0:00:20]}  Kf8 {[%clk 0:02:03]} 75. a8=Q+ {[%clk 0:00:20]}  Kg7 {[%clk 0:02:04]} 76. Qag8# {[%clk 0:00:20]} 1-0


[Site "https://www.chess.com"]

[Event "Titled Tuesday Blitz August 15 Early 2023"]
[White "Sydoryka, Vladyslav"]
[Black "Hoffmann, Asa"]
[WhiteFideId "14145928"]
[BlackFideId "2001470"]
[WhiteElo "2607"]
[BlackElo "2401"]
[Result "1-0"]
[Round "4"]
[TimeControl "180+1"]
[Date "2023.08.15"]
[WhiteClock "0:00:18"]
[BlackClock "0:00:00"]
[Board "135"]

1. c4 {[%clk 0:03:00]}  Nf6 {[%clk 0:02:59]} 2. g3 {[%clk 0:02:54]}  c6 {[%clk 0:02:58]} 3. Bg2 {[%clk 0:02:55]}  d6 {[%clk 0:02:58]} 4. Nf3 {[%clk 0:02:56]}  e5 {[%clk 0:02:58]} 5. O-O {[%clk 0:02:56]}  Be7 {[%clk 0:02:58]} 6. Nc3 {[%clk 0:02:56]}  O-O {[%clk 0:02:57]} 7. d3 {[%clk 0:02:53]}  h6 {[%clk 0:02:55]} 8. c5 {[%clk 0:02:53]}  Be6 {[%clk 0:02:53]} 9. cxd6 {[%clk 0:02:52]}  Bxd6 {[%clk 0:02:53]} 10. Bd2 {[%clk 0:02:49]}  Nbd7 {[%clk 0:02:53]} 11. a3 {[%clk 0:02:38]}  Re8 {[%clk 0:02:52]} 12. b4 {[%clk 0:02:33]}  a5 {[%clk 0:02:50]} 13. b5 {[%clk 0:02:33]}  c5 {[%clk 0:02:46]} 14. Ne1 {[%clk 0:02:28]}  Rb8 {[%clk 0:02:44]} 15. Nc2 {[%clk 0:02:28]}  Nb6 {[%clk 0:02:42]} 16. Ne3 {[%clk 0:02:27]}  Bf8 {[%clk 0:02:33]} 17. Qc2 {[%clk 0:02:27]}  Qc7 {[%clk 0:02:13]} 18. Na4 {[%clk 0:02:27]}  Nxa4 {[%clk 0:02:10]} 19. Qxa4 {[%clk 0:02:28]}  b6 {[%clk 0:02:10]} 20. Rac1 {[%clk 0:02:17]}  Rbd8 {[%clk 0:02:08]} 21. Nc4 {[%clk 0:02:13]}  Bd5 {[%clk 0:02:02]} 22. Bxd5 {[%clk 0:02:10]}  Nxd5 {[%clk 0:02:01]} 23. Rfd1 {[%clk 0:02:09]}  Qb8 {[%clk 0:01:58]} 24. Ne3 {[%clk 0:01:47]}  Nxe3 {[%clk 0:01:48]} 25. Bxe3 {[%clk 0:01:47]}  Qd6 {[%clk 0:01:43]} 26. Rc4 {[%clk 0:01:47]}  f5 {[%clk 0:01:38]} 27. Rdc1 {[%clk 0:01:39]}  Qd5 {[%clk 0:01:37]} 28. f3 {[%clk 0:01:33]}  Bd6 {[%clk 0:01:35]} 29. Bf2 {[%clk 0:01:23]}  Re7 {[%clk 0:01:30]} 30. Qb3 {[%clk 0:01:17]}  Rde8 {[%clk 0:01:19]} 31. e4 {[%clk 0:01:04]}  fxe4 {[%clk 0:01:10]} 32. dxe4 {[%clk 0:01:05]}  Qf7 {[%clk 0:01:08]} 33. Rd1 {[%clk 0:01:04]}  Re6 {[%clk 0:01:07]} 34. Rd5 {[%clk 0:01:03]}  Rf6 {[%clk 0:01:04]} 35. Kg2 {[%clk 0:00:57]}  Bf8 {[%clk 0:01:00]} 36. Rc3 {[%clk 0:00:51]}  Kh8 {[%clk 0:00:58]} 37. Rcd3 {[%clk 0:00:45]}  Qg6 {[%clk 0:00:58]} 38. Rd8 {[%clk 0:00:43]}  Rfe6 {[%clk 0:00:50]} 39. Rxe8 {[%clk 0:00:39]}  Qxe8 {[%clk 0:00:47]} 40. Qd5 {[%clk 0:00:39]}  Kh7 {[%clk 0:00:36]} 41. Qb7 {[%clk 0:00:38]}  Qxb5 {[%clk 0:00:31]} 42. Rd8 {[%clk 0:00:38]}  Rf6 {[%clk 0:00:29]} 43. Qa8 {[%clk 0:00:27]}  Qb3 {[%clk 0:00:28]} 44. f4 {[%clk 0:00:27]}  exf4 {[%clk 0:00:28]} 45. Rxf8 {[%clk 0:00:26]}  f3+ {[%clk 0:00:20]} 46. Kh3 {[%clk 0:00:24]}  Qe6+ {[%clk 0:00:15]} 47. g4 {[%clk 0:00:24]}  Rxf8 {[%clk 0:00:14]} 48. Qxf8 {[%clk 0:00:24]}  Qxe4 {[%clk 0:00:14]} 49. Kg3 {[%clk 0:00:23]}  Qe5+ {[%clk 0:00:13]} 50. Qf4 {[%clk 0:00:23]}  Qxf4+ {[%clk 0:00:12]} 51. Kxf4 {[%clk 0:00:24]}  b5 {[%clk 0:00:13]} 52. Bxc5 {[%clk 0:00:24]}  b4 {[%clk 0:00:11]} 53. axb4 {[%clk 0:00:24]}  axb4 {[%clk 0:00:10]} 54. Kxf3 {[%clk 0:00:23]}  b3 {[%clk 0:00:10]} 55. Bd4 {[%clk 0:00:21]}  Kg6 {[%clk 0:00:10]} 56. h4 {[%clk 0:00:19]}  h5 {[%clk 0:00:09]} 57. g5 {[%clk 0:00:18]}  Kf5 {[%clk 0:00:00]} 58. Bxg7 {[%clk 0:00:18]} 1-0


[Site "https://www.chess.com"]

[Event "Titled Tuesday Blitz August 15 Early 2023"]
[White "Kazakov, Mikhail"]
[Black "Ivanov, Alexey"]
[WhiteFideId "14102749"]
[BlackFideId "4167635"]
[WhiteElo "2398"]
[BlackElo "2603"]
[Result "1/2-1/2"]
[Round "4"]
[TimeControl "180+1"]
[Date "2023.08.15"]
[WhiteClock "0:00:12"]
[BlackClock "0:01:20"]
[Board "136"]

1. e4 {[%clk 0:02:28]}  c6 {[%clk 0:03:00]} 2. d4 {[%clk 0:02:26]}  d5 {[%clk 0:03:01]} 3. exd5 {[%clk 0:02:24]}  cxd5 {[%clk 0:03:02]} 4. c4 {[%clk 0:02:24]}  Nf6 {[%clk 0:03:02]} 5. Nc3 {[%clk 0:02:24]}  e6 {[%clk 0:03:03]} 6. Nf3 {[%clk 0:02:24]}  Bb4 {[%clk 0:03:03]} 7. cxd5 {[%clk 0:02:21]}  Nxd5 {[%clk 0:03:04]} 8. Bd2 {[%clk 0:02:21]}  Nc6 {[%clk 0:03:05]} 9. Bd3 {[%clk 0:02:20]}  Be7 {[%clk 0:03:05]} 10. O-O {[%clk 0:02:19]}  O-O {[%clk 0:03:06]} 11. Re1 {[%clk 0:02:15]}  Bf6 {[%clk 0:03:06]} 12. Be3 {[%clk 0:02:04]}  Nce7 {[%clk 0:03:02]} 13. Be4 {[%clk 0:01:36]}  Bd7 {[%clk 0:03:02]} 14. Bxd5 {[%clk 0:01:32]}  Nxd5 {[%clk 0:03:00]} 15. Nxd5 {[%clk 0:01:31]}  exd5 {[%clk 0:03:01]} 16. Ne5 {[%clk 0:01:31]}  Bxe5 {[%clk 0:02:58]} 17. dxe5 {[%clk 0:01:31]}  Be6 {[%clk 0:02:55]} 18. Bd4 {[%clk 0:01:30]}  Qd7 {[%clk 0:02:55]} 19. Rc1 {[%clk 0:01:28]}  Rfc8 {[%clk 0:02:55]} 20. Qb3 {[%clk 0:01:27]}  b6 {[%clk 0:02:54]} 21. h3 {[%clk 0:01:24]}  Rc4 {[%clk 0:02:54]} 22. Rxc4 {[%clk 0:01:20]}  dxc4 {[%clk 0:02:55]} 23. Qe3 {[%clk 0:01:20]}  Rd8 {[%clk 0:02:54]} 24. Bc3 {[%clk 0:01:20]}  h6 {[%clk 0:02:53]} 25. Kh2 {[%clk 0:01:17]}  Qa4 {[%clk 0:02:53]} 26. a3 {[%clk 0:01:14]}  Rd3 {[%clk 0:02:52]} 27. Qf4 {[%clk 0:01:10]}  Qd7 {[%clk 0:02:49]} 28. Re3 {[%clk 0:01:04]}  Rd1 {[%clk 0:02:42]} 29. Rg3 {[%clk 0:01:00]}  Kh7 {[%clk 0:02:39]} 30. Qe4+ {[%clk 0:00:58]}  g6 {[%clk 0:02:35]} 31. Qf4 {[%clk 0:00:42]}  Qd5 {[%clk 0:02:22]} 32. Re3 {[%clk 0:00:39]}  b5 {[%clk 0:02:15]} 33. Qf6 {[%clk 0:00:37]}  h5 {[%clk 0:02:08]} 34. Rg3 {[%clk 0:00:33]}  Qe4 {[%clk 0:02:01]} 35. Re3 {[%clk 0:00:24]}  Qb1 {[%clk 0:01:59]} 36. Kg3 {[%clk 0:00:21]}  a5 {[%clk 0:01:51]} 37. Bxa5 {[%clk 0:00:17]}  Qxb2 {[%clk 0:01:50]} 38. Bb4 {[%clk 0:00:18]}  Kg8 {[%clk 0:01:28]} 39. Kh4 {[%clk 0:00:18]}  Qc2 {[%clk 0:01:25]} 40. Kg5 {[%clk 0:00:13]}  Qf5+ {[%clk 0:01:24]} 41. Qxf5 {[%clk 0:00:13]}  Bxf5 {[%clk 0:01:25]} 42. g4 {[%clk 0:00:13]}  hxg4 {[%clk 0:01:24]} 43. hxg4 {[%clk 0:00:14]}  Rg1 {[%clk 0:01:24]} 44. f3 {[%clk 0:00:14]}  Be6 {[%clk 0:01:24]} 45. Re4 {[%clk 0:00:13]}  Rd1 {[%clk 0:01:25]} 46. Re2 {[%clk 0:00:12]}  Rd5 {[%clk 0:01:25]} 47. Kf6 {[%clk 0:00:11]}  Rd3 {[%clk 0:01:22]} 48. Rf2 {[%clk 0:00:11]}  c3 {[%clk 0:01:20]} 49. Kg5 {[%clk 0:00:10]}  Kg7 {[%clk 0:01:18]} 50. Kf4 {[%clk 0:00:08]}  Rd4+ {[%clk 0:01:17]} 51. Ke3 {[%clk 0:00:08]}  Rc4 {[%clk 0:01:18]} 52. Rc2 {[%clk 0:00:08]}  g5 {[%clk 0:01:17]} 53. Rxc3 {[%clk 0:00:08]}  Rxc3+ {[%clk 0:01:17]} 54. Bxc3 {[%clk 0:00:08]}  Bd5 {[%clk 0:01:17]} 55. f4 {[%clk 0:00:08]}  gxf4+ {[%clk 0:01:17]} 56. Kxf4 {[%clk 0:00:08]}  Kg6 {[%clk 0:01:17]} 57. Bd4 {[%clk 0:00:08]}  Be6 {[%clk 0:01:18]} 58. Be3 {[%clk 0:00:08]}  Bd7 {[%clk 0:01:19]} 59. Bd4 {[%clk 0:00:08]}  Be6 {[%clk 0:01:19]} 60. Bc5 {[%clk 0:00:08]}  Bd7 {[%clk 0:01:19]} 61. Bb4 {[%clk 0:00:09]}  Be6 {[%clk 0:01:20]} 62. Bc5 {[%clk 0:00:10]}  Bd7 {[%clk 0:01:20]} 63. Bb4 {[%clk 0:00:11]}  Be6 {[%clk 0:01:20]} 64. Bc5 {[%clk 0:00:12]} 1/2-1/2


[Site "https://www.chess.com"]